Workbook

Sheet Champs
A1: HAVOC Club Championships 2026 - Kings Wood - Sunday, 26th April
A3: Women's Championship | L3: Actual Speed | M3: Actual | N3: Handicap | O3: Adjusted Speed | P3: Handicap
C4: Course | E4: Class | F4: Time | K4: Seconds | L4: Mins/km | M4: Place | N4: Correction | O4: Mins/km | P4: Place
A5: Jennifer Gebka | C5: Greeen | E5: W60 | F5: 61.4 | H5: 61 | I5: 40 | K5: =H5*60+I5 -> 3700 | L5: =K5/60/U5 -> 14.34108527 | M5: 1 | N5: 0.53 | O5: =L5*N5 -> 7.600775194 | P5: 1 | R5: Open Champion | U5: 4.3
A8: Men's Championship | L8: Actual Speed | M8: Actual | N8: Handicap | O8: Adjusted Speed | P8: Handicap
E9: Class | F9: Time | K9: Seconds | L9: Mins/km | M9: Place | N9: Correction | O9: Mins/km | P9: Place
A10: Ted Coday | C10: Brown | E10: M21 | F10: 65.01 | H10: 65 | I10: 1 | K10: =H10*60+I10 -> 3901 | L10: =K10/60/U10 -> 7.833333333 | M10: 1 | N10: 1 | O10: =L10*N10 -> 7.833333333 | P10: 3 | R10: Open Champion | U10: 8.3
A11: Guy Lidbury | C11: Blue | E11: M55 | F11: 43.15 | H11: 43 | I11: 15 | K11: 2595 | L11: 8.009259259 | M11: 2 | N11: 0.77 | O11: 6.16712963 | P11: 1 | R11: Handicap Champion | U11: 5.4
A12: Michael Muggeridge | C12: Brown | E12: M65 | F12: 83 | H12: 83 | I12: 0 | K12: 4980 | L12: 10 | M12: 3 | N12: 0.64 | O12: 6.4 | P12: 2 | U12: 8.3
A13: Colin Jackson | C13: Green | E13: M65 | F13: 58.07 | H13: 58 | I13: 7 | K13: 3487 | L13: 13.51550388 | M13: 4 | N13: 0.64 | O13: 8.649922481 | P13: 4 | U13: 4.3
A14: Zbig Gebka | C14: Green | E14: M65 | F14: 58.09 | H14: 58 | I14: 9 | K14: 3489 | L14: 13.52325581 | M14: 5 | N14: 0.64 | O14: 8.654883721 | P14: 5 | U14: 4.3
A15: Graham Batty | C15: Green | E15: M65 | F15: 71.54 | H15: 71 | I15: 54 | K15: 4314 | L15: 16.72093023 | M15: 6 | N15: 0.64 | O15: 10.70139535 | P15: 6 | U15: 4.3
A16: David Float | C16: Blue | E16: M55 | F16: 103.49 | H16: 103 | I16: 49 | K16: 6229 | L16: 19.22530864 | M16: 7 | N16: 0.77 | O16: 14.80348765 | P16: 8 | U16: 5.4
A17: Chris Shaw | C17: Green | E17: M75 | F17: 112.39 | H17: 112 | I17: 39 | K17: 6759 | L17: 26.19767442 | M17: 8 | N17: 0.51 | O17: 13.36081395 | P17: 7 | U17: 4.3
A19: Junior Championships | L19: Actual Speed | M19: Actual | N19: Handicap | O19: Adjusted Speed | P19: Handicap
E20: Class | F20: Time | K20: Seconds | L20: Mins/km | M20: Place | N20: Correction | O20: Mins/km | P20: Place
A22: Charlie Maule-Lidbury | C22: Blue | E22: M16 | F22: 63.53 | H22: 63 | I22: 53 | K22: =H22*60+I22 -> 3833 | L22: =K22/60/U22 -> 11.83024691 | M22: 1 | R22: Junior Boy Champion | U22: 5.4
A23: Hugo Maule-Lidbury | C23: Green | E23: M14 | F23: 53.51 | H23: 53 | I23: 51 | K23: =H23*60+I23 -> 3231 | L23: =K23/60/U23 -> 12.52325581 | M23: 1 | U23: 4.3
A24: Amelie Maule-Lidbury | C24: Orange | E24: W12 | F24: 59.12 | H24: 59 | I24: 12 | K24: =H24*60+I24 -> 3552 | L24: =K24/60/U24 -> 21.14285714 | M24: 1 | R24: Junior Girl Champion | U24: 2.8
A25: Sienna Muggeridge | C25: Yellow | E25: W12 | F25: 41.1 | H25: 41 | I25: 10 | K25: =H25*60+I25 -> 2470 | L25: =K25/60/U25 -> 18.71212121 | M25: 1 | U25: 2.2
A26: Olivia Muggeridge | C26: White | E26: W10 | F26: 21.24 | H26: 21 | I26: 24 | K26: =H26*60+I26 -> 1284 | L26: =K26/60/U26 -> 15.28571429 | M26: 1 | U26: 1.4
